Cogmind - Beta 17 @@@ ROGUE MODE // 2026.06.25 @ 20:40:26 Player: star Result: Destroyed by BN-LS6(R) with Subdweller Machine Gun Performance ------------- Evolutions (0) 0 Regions Visited (2) 400 Robots Destroyed (24) 120 Value Destroyed (531) 531 Prototype IDs (18) 360 Alien Tech Used (0) 0 Bonus (0) 0 TOTAL SCORE: 1411 Bonus ------- None Cogmind --------- Core Integrity 0/250 Matter 164/300 Energy 100/100 System Corruption 0% Temperature Cool (0) Movement Walking (180) Ox1 Location -10/Subcaves Parts ------- > --- POWER (1) -------- (None) > --- PROPULSION (2) --- Improved VSS Leg (fused) Improved VSS Leg (fused) > --- UTILITY (2) ------ Medium Storage Unit Self-contained Transmogrifier > --- WEAPON (2) ------- Flak Cannon (fused) Improved Grenade Launcher (fused) > --- INVENTORY (10) --- Aluminum Leg Heat Sink Disposable Heat Sink Core Shielding Gun Armor Makeshift Kinetic Plating Spread Laser Spread Laser Assault Rifle Peak State ------------ > --- POWER ------------ Deuterium Engine > --- PROPULSION ------- Multireflex Exoskeleton > --- UTILITY ---------- Medium Storage Unit Self-contained Transmogrifier > --- WEAPON ----------- Heavy Riot Gun Advanced Beam Rifle > --- INVENTORY -------- Aluminum Leg Heat Sink Disposable Heat Sink Core Shielding Gun Armor Spread Laser Spread Laser Spread Laser Assault Rifle Subdweller Shrapnel Launcher [Rating: 35] Favorites ----------- Power Light Ion Engine Engine Light Ion Engine Propulsion Aluminum Leg Leg Aluminum Leg Wheel Compact Wheel Utility Medium Storage Unit Device Self-contained Transmogrifier Storage Medium Storage Unit Protection Core Shielding Weapon Spread Laser Energy Gun Spread Laser Ballistic Gun Assault Rifle Ballistic Cannon Assault Cannon Launcher Subdweller Shrapnel Launcher Build | -11 -10 -10 ------- Run | Yrd Mat Sub Slots Evolved . | . . . Power . | . . . Propulsion . | . . . Utility . | . . . Weapon . | . . . Parts Attached 23 | 6 8 9 Power 3 | 1 1 1 Engine 3 | 1 1 1 Core . | . . . Reactor . | . . . Propulsion 5 | 2 2 1 Treads . | . . . Leg 3 | . 2 1 Wheel 2 | 2 . . Hover . | . . . Flight . | . . . Utility 6 | 1 3 2 Device 3 | . 1 2 Storage 2 | 1 1 . Processor . | . . . Hackware . | . . . Protection 1 | . 1 . Artifact . | . . . Weapon 9 | 2 2 5 Energy Gun 5 | . 2 3 Energy Cannon . | . . . Ballistic Gun 2 | 2 . . Ballistic Cannon 1 | . . 1 Launcher 1 | . . 1 Special Weapon . | . . . Impact Weapon . | . . . Slashing Weapon . | . . . Piercing Weapon . | . . . Special Melee Weapon . | . . . Unidentified Prototypes 1 | . . 1 Parts Lost 6 | . 2 4 Power 2 | . . 2 Propulsion 2 | . 2 . Utility . | . . . Weapon 2 | . . 2 Highest Loss Streak 2 | . 1 2 To Critical Strikes 1 | . . 1 Average Backups 8 | 1 7 9 Power . | . 1 . Propulsion 1 | . 1 1 Utility 1 | . . 3 Weapon 4 | . 4 4 Tool/Special . | . . . Unused Backups 9 | . 3 6 Power . | . . . Propulsion 4 | . 3 1 Utility 3 | . . 3 Weapon 2 | . . 2 Tool/Special . | . . . Average Slot Usage (%) 94 | . 97 92 Engine 11 | . 14 10 Leg 22 | . 18 25 Wheel 3 | . 8 . Device 10 | . 4 14 Storage 14 | . 14 14 Protection 3 | . 8 . Energy Gun 18 | . 14 20 Ballistic Gun 6 | . 13 1 Ballistic Cannon 1 | . . 2 Launcher 1 | . . 2 Peak Build Rating 35 | 6 10 35 Average Rating 16 | 4 8 22 On Entrance 5 | . 6 10 Avg Prop Armor Cover (%) 6 | . . 6 Naked Turns . | . . . Heaviest Build 31 | 13 23 31 Greatest Support 38 | 32 32 38 Greatest Overweight (x) 2 | . 2 1 Average Overweight (x) . | . . . Largest Inventory Capacity 10 | 8 10 10 Average Capacity 9 | 7 9 10 Most Carried 10 | 3 10 10 Average Carried 8 | 1 7 9 Final Capacity 10 | 8 10 10 Final Carried 10 | 3 10 9 Transmogrified Parts 18 | . . 18 Integrity Recovered 324 | . . 324 Class Distribution -------------------- 92% | Mutant 7% | Scavenger-Mutant Dominant Class ---------------- Mutant | -10/Materials Mutant | -10/Subcaves Resources | -11 -10 -10 ----------- Run | Yrd Mat Sub Matter Collected 781 | 238 252 291 Remotely . | . . . Salvage Created 681 | . 448 233 Parts 48 | . 32 16 Haulers Intercepted 2 | . 2 . Recyclers Shooed 1 | . 1 . Parts Field Recycled . | . . . Retrieved Matter . | . . . Parts Self-Destructed 8 | . . 8 Prevented . | . . . Parts Restored . | . . . Kills | -11 -10 -10 ------- Run | Yrd Mat Sub Combat Hostiles Destroyed 19 | . 11 8 Guns 19 | . 11 8 Classes Destroyed 7 | . 5 2 Builder 2 | . 2 . Hauler 2 | . 2 . Recycler 1 | . 1 . Swarmer 8 | . 8 . Grunt 4 | . 3 1 Sentry 1 | . . 1 Subdweller 6 | . . 6 Best Kill Streak 3 | . 3 2 Combat Bots Only 3 | . 3 2 Max Kills in Single Turn 1 | . 1 1 Gunslinging . | . . . Exploded . | . . . Melee . | . . . Uniques/NPCs Destroyed . | . . . Combat | -11 -10 -10 -------- Run | Yrd Mat Sub Hostile Shots Fired 115 | . 61 54 Missed 29 | . 11 18 Hits 86 | . 50 36 Projectile 86 | . 50 36 Critical Strikes 3 | . . 3 Damage Taken 1290 | . 498 792 Core 260 | . 87 173 Absorbed by Shields . | . . . Redirected to Shielding 18 | . 18 . Core Remaining (%) 100 | 100 . . Volleys Fired 129 | . 48 81 Largest 2 | . 2 2 Hottest 130 | . 130 130 Shots Fired 220 | . 96 124 Gun 182 | . 96 86 Cannon 30 | . . 30 Launcher 8 | . . 8 Special . | . . . Kinetic 123 | . 82 41 Thermal 87 | . 14 73 Explosive 2 | . . 2 Electromagnetic 8 | . . 8 Robot Hit Streak 12 | . 8 12 Robot Miss Streak 11 | . 11 3 Penetration Max . | . . . Secondary Targets 1 | . 1 . Max Gunslinging Chain 1 | . 1 . Shots Hit Robots 99 | . 55 44 Core Hits 88 | . 34 54 Critical Kills . | . . . Critical Parts Destroyed 1 | . 1 . Critical Strikes 1 | . 1 . Destroy 1 | . 1 . Melee Attacks . | . . . Impact . | . . . Slashing . | . . . Piercing . | . . . Sneak Attacks . | . . . Combat Hostiles . | . . . Follow-up Attacks . | . . . Damage Inflicted 1609 | . 635 974 Guns 1343 | . 617 726 Cannons . | . . . Explosions 248 | . . 248 Melee . | . . . Ramming 18 | . 18 . Kinetic 712 | . 464 248 Thermal 869 | . 153 716 Explosive . | . . . Electromagnetic 10 | . . 10 Impact . | . . . Slashing . | . . . Piercing . | . . . Highest Corruption . | . . . Average Corruption . | . . . Corruption Purged . | . . . Corruption Blocked . | . . . Overload Shots . | . . . Overflow Damage . | . . . Projectiles . | . . . Explosions . | . . . Melee . | . . . Knockbacks . | . . . Impact . | . . . Kinetic . | . . . Secondary . | . . . Self-Inflicted Damage 72 | . . 72 Shots 4 | . . 4 Rammed . | . . . Targets Rammed 2 | . 2 . Kicked 2 | . 2 . Crushed . | . . . Highest Temperature 207 | . 207 61 Average Temperature 29 | . 51 13 Received Heat Transfer 246 | . 60 186 Siege Activations . | . . . Martial Activations . | . . . Shielding Activations . | . . . Robots Disrupted . | . . . Combat Hostiles . | . . . Robots Corrupted . | . . . Combat Hostiles . | . . . Parts Fried . | . . . Impact Corruptions . | . . . Robots Melted . | . . . Combat Hostiles . | . . . Parts Melted . | . . . Heat Transferred 1070 | . 185 885 Parts Sabotaged . | . . . Parts Stolen . | . . . Parts Stripped . | . . . Power Chain Reactions . | . . . Alert | -11 -10 -10 ------- Run | Yrd Mat Sub Maximum Alert Level . | . . . Low Security (%) 100 | 100 100 . Level 1 . | . . . Level 2 . | . . . Level 3 . | . . . Level 4 . | . . . Level 5 . | . . . High Security . | . . . Max Security . | . . . Peak Influence 126 | . 126 . Initial . | . . . Average 42 | . 44 . Influence Increases 459 | . 404 55 Destroy 0b10 Robot/C 260 | . 220 40 Destroy 0b10 Robot/NC 25 | . 25 . Destroy Leader 54 | . 54 . Disable Machine 15 | . 15 . Partial Spotted 15 | . 15 . Lose Combat Pursuer 90 | . 75 15 Influence Decreases 459 | . 404 55 Time Decay 439 | . 384 55 Lost Part 20 | . 20 . Squads Dispatched 4 | . 4 . Investigation 3 | . 3 . Extermination . | . . . Reinforcement 1 | . 1 . Assault . | . . . Garrison . | . . . Intercept . | . . . Searches Triggered . | . . . Construction Impeded . | . . . Haulers Reinforced . | . . . Active Scanning Responses . | . . . Cargo Convoy Interrupts . | . . . Stealth | -11 -10 -10 --------- Run | Yrd Mat Sub Distress Signals 3 | . 3 . Communications Jammed . | . . . Distress Signals . | . . . Times Spotted 40 | . 29 11 Peak Tracking Total 5 | . 5 2 Tactical Retreats 4 | . 3 1 Traps | -11 -10 -10 ------- Run | Yrd Mat Sub Traps Triggered 4 | . 4 . Indirectly . | . . . Trap Hack Attempts . | . . . Triggered . | . . . Disarmed . | . . . Reprogrammed . | . . . Reused . | . . . Traps Extracted . | . . . Installed 1 | . . 1 Triggered . | . . . Machines | -11 -10 -10 ---------- Run | Yrd Mat Sub Machines Disabled 2 | . 1 1 Max in Single Turn 1 | . 1 1 Machines Repaired . | . . . Machines Dismantled . | . . . Machines Sabotaged . | . . . Overloaded Fab Kills . | . . . Hacking | -11 -10 -10 --------- Run | Yrd Mat Sub Machines Accessed 1 | . . 1 Terminals . | . . . Fabricators . | . . . Repair Stations . | . . . Recycling Units . | . . . Scanalyzers . | . . . Garrison Access . | . . . Total Hacks 1 | . . 1 Successful 1 | . . 1 Failed . | . . . Catastrophic . | . . . Database Lockouts . | . . . Manual 1 | . 1 . Terminals . | . . . Fabricators . | . . . Repair Stations . | . . . Recycling Units . | . . . Scanalyzers . | . . . Garrison Access . | . . . Terminal Hacks 1 | . . 1 Proto ID Catalog 1 | . . 1 Fabricator Hacks . | . . . Repair Station Hacks . | . . . Recycling Unit Hacks . | . . . Scanalyzer . | . . . Garrison Access Hacks . | . . . Unauthorized Hacks . | . . . Terminals . | . . . Fabricators . | . . . Repair Stations . | . . . Recycling Units . | . . . Scanalyzers . | . . . Garrison Access . | . . . Data Cores Recovered . | . . . Used . | . . . Hacking Detections . | . . . Full Trace Events . | . . . Feedback Events . | . . . Feedback Blocked . | . . . Robot Schematics Acquired . | . . . Robots Built . | . . . Authchips . | . . . Time . | . . . Total Robot Build Rating . | . . . Part Schematics Acquired . | . . . Parts Built . | . . . Authchips . | . . . Time . | . . . Total Part Build Rating . | . . . Part Studies Acquired . | . . . Parts Repaired . | . . . Time . | . . . Parts Recycled . | . . . Recycled Matter . | . . . Retrieved Matter . | . . . Retrieved Components . | . . . Parts Scanalyzed . | . . . Part Schematics Acquired . | . . . Parts Damaged . | . . . Bothacking | -11 -10 -10 ------------ Run | Yrd Mat Sub Used RIF Installer . | . . . Robots Hacked . | . . . Non-combat . | . . . Combat . | . . . Robot Hacks Applied . | . . . Relay Couplers Released . | . . . Fabnet Peak Effective % . | . . . Robots Rewired . | . . . Allies Hacked . | . . . Hacks Repelled . | . . . Allies | -11 -10 -10 -------- Run | Yrd Mat Sub Total Allies . | . . . Largest Group . | . . . Highest-Rated Group . | . . . Highest-Rated Ally . | . . . Total Orders . | . . . Ally Attacks . | . . . Total Damage . | . . . Kills . | . . . Allies Corrupted . | . . . Allies Melted . | . . . Intel | -11 -10 -10 ------- Run | Yrd Mat Sub Active Infowar (turns) . | . . . Robot Analysis Total . | . . . Derelict Logs Recovered 2 | . . 2 Drone Launches . | . . . Drone Recoveries . | . . . Exploration | -11 -10 -10 ------------- Run | Yrd Mat Sub Turns Passed 3496 | 69 1325 2102 Spaces Moved 2214 | 61 731 1422 Core 6 | 6 . . Treads . | . . . Legs 1871 | . 449 1422 Wheels 337 | 55 282 . Hover . | . . . Flight . | . . . Fastest Speed 50 | 50 100 90 Average Speed 126 | 95 131 125 Slowest Speed 260 | 100 260 180 Overloaded Moves . | . . . Propulsion Burnouts . | . . . Robots Hopped . | . . . Potential Cave-ins 12 | . . 12 Cave-ins Triggered . | . . . Exploration Rate (%) 47 | 3 92 47 Regions Visited 2 Branch Regions 1 Pre-discovered Areas 2 | . . 2 Known Exits Taken . | . . . Unknown Exits Taken 2 | 1 1 . Scrap Searched 3 | . . 3 Spaces Dug 13 | . . 13 Terrain Destroyed 118 | . . 118 Melee . | . . . Projectile 21 | . . 21 AOE 97 | . . 97 Terrain Rammed . | . . . Walls Destroyed . | . . . Machines Disabled . | . . . Actions | -11 -10 -10 --------- Run | Yrd Mat Sub Total 2686 | 69 1004 1613 Wait 285 | . 202 83 Move 2212 | 60 730 1422 Hop . | . . . Pick Up 21 | 3 11 7 Fast Attach 7 | 6 1 . Attach 5 | . 2 3 Detach . | . . . Swap 15 | . 5 10 Drop 9 | . 3 6 Fire 129 | . 48 81 Melee . | . . . Ram . | . . . Kick 2 | . 2 . Crush . | . . . Escape Stasis . | . . . Rewire . | . . . Trap 1 | . . 1 Miscellaneous . | . . . Route ------- -11/Scrapyard -10/Materials (discovered 6 exits: [*Mat x3] / [*Min x2] / *Sub) -10/Subcaves (discovered 1 exit: Rec) History --------- Turn | Location | Event 6 | -11/Scrapyard | Discovered new exit (range 15) 70 | -11/Scrapyard | Entered Materials 210 | -10/Materials | Discovered new exit (range 16) 303 | -10/Materials | Discovered new exit (range 12) 308 | -10/Materials | Build established: Mutant 370 | -10/Materials | Discovered new exit (range 11) 438 | -10/Materials | Discovered new exit (range 6) 543 | -10/Materials | Discovered new exit (range 15) 1381 | -10/Materials | Discovered new exit (range 9) 1395 | -10/Materials | Entered Subcaves 1398 | -10/Subcaves | Identified exit to Recycling 1403 | -10/Subcaves | Shifting Twisted Machinery released Sub. Laser 1477 | -10/Subcaves | Shifting Twisted Machinery released Sub. Machine Gun 1479 | -10/Subcaves | Shifting Twisted Machinery released Piercing Trap 1665 | -10/Subcaves | Learned location of Zion (-6) 1665 | -10/Subcaves | Met a Zionite searching for "candidates" 1697 | -10/Subcaves | A swath of the cavern ceiling suddenly collapsed 2051 | -10/Subcaves | Visited 4L-MR0's lab 2058 | -10/Subcaves | Found Prototype Device 2058 | -10/Subcaves | Identified Sfc. Transmogrifier 2477 | -10/Subcaves | Found Gun Armor 2869 | -10/Subcaves | Ambushed by Subdweller buried in earth 2869 | -10/Subcaves | Ambushed by Subdweller buried in earth 2881 | -10/Subcaves | Core integrity fell below 50% 2915 | -10/Subcaves | Core integrity fell below 20% 3489 | -10/Subcaves | Disturbed a concealed Subdweller 3497 | -10/Subcaves | Destroyed by BN-LS6(R) with Subdweller Machine Gun Last Messages --------------- Grenade Launcher. 03402_ S1-HCM(u) builds Twisted Machinery. 03416_ The unstable cave ceiling collapses. 03420_ S1-HCM(u) builds Twisted Machinery. 03452_ The unstable cave ceiling collapses. 03474_ Searching scrap... 03474_ Found Sub. Shrapnel Launcher. 03474_ Found 33 Matter. 03475_ Acquired 33 matter. 03476_ Searching scrap... 03476_ Found Battle Cannon. 03476_ Found Sub. Laser. 03476_ Found 34 Matter. 03477_ Acquired 34 matter. 03483_ Searching scrap... 03483_ Found Mak. Kinetic Plating. 03483_ Found 31 Matter. 03484_ Acquired 31 matter. 03487_ Acquired Mak. Kinetic Plating. 03489_ BN-LS6(R) angrily emerges from the Twisted Machinery. Map ----- +----------------------------------------------------+ | | | | | | | | | | | | | | | | | | | | | | | | | | | | | | | | | ?????????????????????????????????????????????????? | | ?????????????????????????????????????????????????? | | ?????????????????????????????????????????????????? | | ?????????????????????????????????????????????????? | | ?????????????????????########????????????????????? | | ????????????????????##$ << <#????????????????????? | | ????????????????????# " <##???????????????????? | | ????????????????????#< & #???????????????????? | | ????????????????????# < #R #$#???????????????????? | | ????????????????????##< @ #????###??????????????? | | ?????????????????????### #### "##?????????????? | | ????????????????????## [] "#?????????????? | | ????????????????????#<]] ##### $#?????????????? | | ????????????????????#< # #??????????????? | | ????????????????????##< ##?????????????????? | | ??????????????######?##< ## "#?????????????????? | | ????????????### ########" ###???????????????? | | ???????????## ""### " ####????????????? | | ?????????### """ #????????????? | | ?????????# ####### #???????????? | | ?????????#""" # " #????? #?????????? | | ????????##" "" #??? ??????? | | ???????##"" ""## ???? | | ????#### " " ##"" ## # ## ???? | | ???## "## " " ##""" ### ##?##?##??? ???? | | ???# #""" " ### ""##?? ##???????????????? | | ??## # ""##" "####"##??? ##????????????????? | | ??# # " ##"" " "###????#####?????????????????? | | ??# "###"""""#########??????#####??????????? | | ??# #### """"# # # #?????# ## ##?????????? | | ??###### " ##""""" ##???## ### #?????????? | | ??????## " ###"""##" # #??## ### # #????????? | | ?????## " ### " ##### ##?## # #####????????? | | ???### # #####" #?## ### #???????????? | +----------------------------------------------------+ Best States ------------- Heat Dissipation 35 Coolant Potential 50 Energy Generation 14 Energy Capacity 275 Matter Stores 300 Matter Capacity 300 Sight Range 16 Terrain Scan Density 10 Core Shielding 20 Evasion (%) 55 Item Schematics ----------------- None Robot Schematics ------------------ None Fabricated ------------ Nothing Repaired ---------- Nothing Studied --------- None Alien Tech Used ----------------- None Achievements -------------- None Challenges ------------ None Game ------ Seed GravitonCooledInitializer Manual? 0 Play Time 00:20:55 Cumulative 210.8 hours Start 2026.06.25 @ 20:23:18 End 2026.06.25 @ 20:40:26 Sessions 1 Manual Loads 0 Difficulty Rogue Special Mode None Game No. 352 Rogue 352 Adventurer 0 Explorer 0 Win Type - Total 2 Types 2/0/0/0/0/0/0/0/0/0 Lore% 62 Gallery% 60 Achievement% 47 Wizard Run 0 Options --------- Layout 2 ASCII 0 Keyboard 1 Movement Numpad Keybinds 0 Fullscreen 1 Font 20/SmallcapsGlow Map View 64x51 Zoom Use 0% Tactical HUD 1 Map Filters NONE Filters NONE Steam 1 RUN: 5b527f01-2c99-41eb-a615-c397acf3065c